fUSD/lending_fUSD_20260227
["ID","MTS","AMOUNT","RATE_DAILY","PERIOD"]
[406828711,1772211050536,-500.0,0.00041999,120]
[406828712,1772211050545,-151.0,0.00041999,120]
[406828713,1772211050555,-500.0,0.00041999,120]
[406828714,1772211050564,-500.0,0.00041999,120]
[406828715,1772211050573,-151.0,0.00041999,120]
[406828716,1772211050584,-500.0,0.00041999,120]
[406828717,1772211050594,-500.0,0.00041999,120]
[406828718,1772211050603,-151.0,0.00041999,120]
[406828719,1772211050612,-500.0,0.00041999,120]
[406828720,1772211050623,-151.0,0.00041999,120]
[406828721,1772211050632,-500.0,0.00041999,120]
[406828722,1772211050641,-151.0,0.00041999,120]
[406828723,1772211050650,-500.0,0.00041999,120]
[406828724,1772211050660,-151.0,0.00041999,120]
[406828725,1772211050669,-500.0,0.00041999,120]
[406828726,1772211050805,-151.0,0.00041999,120]
[406828727,1772211050817,-500.0,0.00041999,120]
[406828728,1772211050826,-151.0,0.00041999,120]
[406828729,1772211050836,-500.0,0.00041999,120]
[406828730,1772211050845,-151.0,0.00041999,120]
[406828731,1772211050854,-500.0,0.00041999,120]
[406828732,1772211050863,-151.0,0.00041999,120]
[406828733,1772211050873,-500.0,0.00041999,120]
[406828734,1772211050882,-151.0,0.00041999,120]
[406828735,1772211050892,-500.0,0.00041999,120]
[406828736,1772211050901,-500.0,0.00041999,120]
[406828737,1772211050911,-500.0,0.00041999,120]
[406828738,1772211050920,-500.0,0.00041999,120]
[406828739,1772211050930,-500.0,0.00041999,120]
[406828740,1772211050939,-500.0,0.00041999,120]
[406828741,1772211050949,-500.0,0.00041999,120]
[406828742,1772211050959,-500.0,0.00041999,120]
[406828743,1772211050969,-500.0,0.00041999,120]
[406828744,1772211050978,-500.0,0.00041999,120]
[406828745,1772211050987,-500.0,0.00041999,120]
[406828746,1772211050997,-500.0,0.00041999,120]
[406828747,1772211051006,-500.0,0.00041999,120]
[406828748,1772211051015,-500.0,0.00041999,120]
[406828749,1772211051025,-250.0,0.00041999,120]
[406828750,1772211051034,-500.0,0.00041999,120]
[406828751,1772211051043,-250.0,0.00041999,120]
[406828752,1772211051053,-500.0,0.00041999,120]
[406828753,1772211051062,-500.0,0.00041999,120]
[406828754,1772211051071,-250.0,0.00041999,120]
[406828755,1772211051080,-500.0,0.00041999,120]
[406828756,1772211051090,-250.0,0.00041999,120]
[406828757,1772211051099,-500.0,0.00041999,120]
[406828758,1772211051108,-250.0,0.00041999,120]
[406828759,1772211051117,-500.0,0.00041999,120]
[406828760,1772211051127,-500.0,0.00041999,120]
[406828761,1772211051136,-250.0,0.00041999,120]
[406828762,1772211051146,-250.0,0.00041999,120]
[406828763,1772211051156,-250.0,0.00041999,120]
[406828764,1772211051166,-500.0,0.00041999,120]
[406828765,1772211051175,-250.0,0.00041999,120]
[406828766,1772211051184,-500.0,0.00041999,120]
[406828767,1772211051194,-500.0,0.00041999,120]
[406828768,1772211051203,-250.0,0.00041999,120]
[406828769,1772211051213,-500.0,0.00041999,120]
[406828770,1772211051222,-250.0,0.00041999,120]
[406828771,1772211051231,-250.0,0.00041999,120]
[406828772,1772211051240,-250.0,0.00041999,120]
[406828773,1772211051250,-250.0,0.00041999,120]
[406828774,1772211051259,-250.0,0.00041999,120]
[406828775,1772211051268,-250.0,0.00041999,120]
[406828776,1772211051277,-151.0,0.00041999,120]
[406828777,1772211051286,-250.0,0.00041999,120]
[406828778,1772211051296,-156.587,0.00041999,120]
[406828779,1772211051305,-250.0,0.00041999,120]
[406828780,1772211051315,-162.380719,0.00041999,120]
[406828781,1772211051324,-250.0,0.00041999,120]
[406828782,1772211051335,-168.3888056,0.00041999,120]
[406828783,1772211051344,-174.61919141,0.00041999,120]
[406828784,1772211051353,-250.0,0.00041999,120]
[406828785,1772211051363,-181.08010149,0.00041999,120]
[406828786,1772211051372,-187.78006525,0.00041999,120]
[406828787,1772211051382,-194.72792766,0.00041999,120]
[406828788,1772211051395,-201.93286099,0.00041999,120]
[406828789,1772211051405,-209.40437684,0.00041999,120]
[406828790,1772211051414,-217.15233878,0.00041999,120]
[406828791,1772211051423,-225.18697532,0.00041999,120]
[406828792,1772211051433,-233.51889341,0.00041999,120]
[406828793,1772211051442,-242.15909246,0.00041999,120]
[406828794,1772211051451,-251.11897888,0.00041999,120]
[406828795,1772211051460,-260.4103811,0.00041999,120]
[406828796,1772211051471,-270.0455652,0.00041999,120]
[406828797,1772211051480,-280.03725112,0.00041999,120]
[406828798,1772211051489,-290.39862941,0.00041999,120]
[406828799,1772211051498,-301.1433787,0.00041999,120]
[406828800,1772211051507,-500.0,0.00041999,120]
[406828801,1772211051517,-500.0,0.00041999,120]
[406828802,1772211051527,-500.0,0.00041999,120]
[406828803,1772211051535,-500.0,0.00041999,120]
[406828804,1772211051545,-500.0,0.00041999,120]
[406828805,1772211051554,-500.0,0.00041999,120]
[406828806,1772211051563,-500.0,0.00041999,120]
[406828807,1772211051573,-500.0,0.00041999,120]
[406828808,1772211051582,-500.0,0.00041999,120]
[406828809,1772211051591,-500.0,0.00041999,120]
[406828810,1772211051601,-500.0,0.00041999,120]
[406828811,1772211051610,-500.0,0.00041999,120]
[406828812,1772211051619,-500.0,0.00041999,120]
[406828813,1772211051628,-500.0,0.00041999,120]
[406828814,1772211051637,-500.0,0.00041999,120]
[406828815,1772211051647,-500.0,0.00041999,120]
[406828816,1772211051656,-500.0,0.00041999,120]
[406828817,1772211051666,-500.0,0.00041999,120]
[406828818,1772211051675,-500.0,0.00041999,120]
[406828819,1772211051685,-500.0,0.00041999,120]
[406828820,1772211051693,-500.0,0.00041999,120]
[406828821,1772211051703,-500.0,0.00041999,120]
[406828822,1772211051713,-500.0,0.00041999,120]
[406828823,1772211051722,-500.0,0.00041999,120]
[406828824,1772211051731,-500.0,0.00041999,120]
[406828825,1772211051740,-500.0,0.00041999,120]
[406828826,1772211051750,-500.0,0.00041999,120]
[406828827,1772211051760,-500.0,0.00041999,120]
[406828828,1772211051769,-500.0,0.00041999,120]
[406828829,1772211051779,-500.0,0.00041999,120]
[406828830,1772211051788,-500.0,0.00041999,120]
[406828831,1772211051798,-500.0,0.00041999,120]
[406828832,1772211051808,-500.0,0.00041999,120]
[406828833,1772211051818,-500.0,0.00041999,120]
[406828834,1772211051828,-500.0,0.00041999,120]
[406828835,1772211051840,-500.0,0.00041999,120]
[406828836,1772211051849,-500.0,0.00041999,120]
[406828837,1772211051859,-500.0,0.00041999,120]
[406828838,1772211051868,-500.0,0.00041999,120]
[406828839,1772211051878,-150.0,0.00042173,120]
[406828840,1772211051887,-844.0,0.00042192,120]
[406828841,1772211051896,-5800.0,0.00042202,14]
[406828842,1772211051905,-5800.0,0.00042211,14]
[406828843,1772211051914,-5800.0,0.00042219,14]
[406828844,1772211051924,-15864.02335664,0.00042458,15]
[406828845,1772211051933,-500.0,0.00042466,120]
[406828846,1772211051942,-500.0,0.00042521,120]
[406828847,1772211051951,-538.19,0.00042558,120]
[406828848,1772211051960,-500.0,0.00042558,120]
[406828849,1772211051969,-125196.0,0.00042558,60]
[406828850,1772211051978,-500.0,0.00042576,120]
[406828851,1772211051987,-263.36,0.000426,60]
[406828852,1772211051997,-500.0,0.0004263,120]
[406828853,1772211052007,-3496.0,0.00042663,2]
[406828854,1772211052016,-4573.0,0.00042663,2]
[406828855,1772211052025,-2456.0,0.00042663,2]
[406828856,1772211052034,-548.24027843,0.00042685,120]
[406828857,1772211052044,-845.0,0.0004272,16]
[406828858,1772211052053,-844.0,0.0004274,120]
[406828859,1772211052063,-4000.0,0.0004274,14]
[406828860,1772211052072,-1000.0,0.00042777,60]
[406828861,1772211052084,-1117.03,0.000428,14]
[406828862,1772211052093,-4049.86,0.00043,30]
[406828863,1772211052102,-3460.32,0.00043,14]
[406828864,1772211052111,-2957.39,0.00043,14]
[406828865,1772211052120,-200.0,0.00043068,120]
[406828866,1772211052129,-263.66,0.00043068,120]
[406828867,1772211052138,-538.19,0.0004328,120]
[406828868,1772211052147,-538.19,0.0004328,120]
[406828869,1772211052157,-538.19,0.0004328,120]
[406828870,1772211052167,-538.19,0.0004328,120]
[406828871,1772211052176,-538.31,0.0004328,120]
[406828872,1772211052185,-500.0,0.0004328,120]
[406828873,1772211052194,-500.0,0.0004328,120]
[406828874,1772211052203,-500.0,0.0004328,120]
[406828875,1772211052213,-162.5481671,0.0004328,120]
[406828876,1772211052222,-5134.6406989,0.00043281,7]
[406828877,1772211052231,-2035.3881807,0.00043281,7]
[406828878,1772211052240,-78648.78283891,0.00043281,7]
[406828879,1772211052250,-102207.72539944,0.00043281,7]
[406828880,1772211052260,-844.0,0.00043288,120]
[406828881,1772211052269,-500.0,0.00043288,120]
[406828882,1772211052278,-1921.21303493,0.00043313,28]
[406828883,1772211052287,-500.0,0.00043343,120]
[406828884,1772211052296,-500.0,0.00043398,120]
[406828885,1772211052306,-500.0,0.00043452,120]
[406828886,1772211052316,-153.0,0.000435,120]
[406828887,1772211052325,-500.0,0.00043507,120]
[406828888,1772211052335,-500.0,0.00043562,120]
[406828889,1772211052345,-500.0,0.00043617,120]
[406828890,1772211052354,-500.0,0.00043672,120]
[406828891,1772211052364,-2000.0,0.000437,2]
[406828892,1772211052373,-1117.03,0.000437,14]
[406828893,1772211052383,-500.0,0.00043726,120]
[406828894,1772211052394,-500.0,0.00043781,120]
[406828895,1772211052403,-844.0,0.00043836,120]
[406828896,1772211052412,-500.0,0.00043836,120]
[406828897,1772211052421,-20000.0,0.00043836,120]
[406828898,1772211052430,-196.82672014,0.0004384,120]
[406828899,1772211052439,-196.82672014,0.0004384,120]
[406828900,1772211052449,-196.82,0.0004384,120]
[406828901,1772211052458,-153.087449,0.0004384,120]
[406828902,1772211052469,-153.087449,0.0004384,120]
[406828903,1772211052478,-500.0,0.00043891,120]
[406828904,1772211052488,-1294.92,0.000439,90]
[406828905,1772211052497,-1294.92,0.000439,90]
[406828906,1772211052506,-1294.92,0.000439,90]
[406828907,1772211052515,-390.485,0.000439,120]
[406828908,1772211052524,-154.0,0.000439,120]
[406828909,1772211052533,-245.61450761,0.00043907,7]
[406828910,1772211052543,-125196.0,0.00043917,60]
[406828911,1772211052552,-500.0,0.00043946,120]
[406828912,1772211052561,-500.0,0.00044,120]
[406828913,1772211052570,-245.0,0.00044055,120]
[406828914,1772211052580,-3460.32,0.000441,14]
[406828915,1772211052589,-2957.39,0.000441,14]
[406828916,1772211052598,-500.0,0.00044109,120]
[406828917,1772211052608,-500.0,0.00044109,120]
[406828918,1772211052618,-500.0,0.00044109,120]
[406828919,1772211052627,-500.0,0.00044109,120]
[406828920,1772211052637,-500.0,0.00044109,120]
[406828921,1772211052646,-500.0,0.00044109,120]
[406828922,1772211052655,-500.0,0.00044109,120]
[406828923,1772211052665,-500.0,0.00044109,120]
[406828924,1772211052674,-296.88472817,0.00044109,120]
[406828925,1772211052683,-150.0,0.00044281,120]
[406828926,1772211052692,-500.0,0.00044308,120]
[406828927,1772211052702,-844.0,0.00044384,120]
[406828928,1772211052712,-1000.0,0.00044457,60]
[406828929,1772211052721,-153.087449,0.00044547,120]
[406828930,1772211052730,-166.15,0.00044689,14]
[406828931,1772211052739,-3856.59986192,0.00044719,10]
[406828932,1772211052749,-848.0,0.00044734,16]
[406828933,1772211052758,-1117.03,0.000448,14]
[406828934,1772211052769,-1040.2,0.00044859,120]
[406828935,1772211052778,-300.0,0.000449,16]
[406828936,1772211052787,-844.0,0.00044932,120]
[406828937,1772211052797,-594.41787884,0.00044987,120]
[406828938,1772211052806,-277.19377264,0.00045,120]
[406828939,1772211052815,-1000.0,0.00045,30]
[406828940,1772211052824,-5000.0,0.00045,2]
[406828941,1772211052834,-164.0,0.00045,90]
[406828942,1772211052844,-437.0,0.00045,90]
[406828943,1772211052853,-169.0,0.00045,90]
[406828944,1772211052862,-25000.0,0.00045052,15]
[406828945,1772211052871,-25000.0,0.00045061,15]
[406828946,1772211052881,-25000.0,0.0004507,15]
[406828947,1772211052890,-19420.49031765,0.0004507,15]
[406828948,1772211052899,-273180.696609,0.00045073,2]
[406828949,1772211052907,-151.0,0.00045073,120]
[406828950,1772211052917,-151.0,0.00045073,120]
[406828951,1772211052926,-151.0,0.00045073,120]
[406828952,1772211052935,-241.889116,0.00045073,120]
[406828953,1772211052944,-151.0,0.00045073,30]
[406828954,1772211052954,-151.0,0.00045073,120]
[406828955,1772211052963,-151.0,0.00045073,120]
[406828956,1772211052972,-206.260924,0.00045073,30]
[406828957,1772211052981,-151.0,0.00045073,120]
[406828958,1772211052990,-151.0,0.00045073,120]
[406828959,1772211052999,-191.733522,0.00045073,120]
[406828960,1772211053008,-151.0,0.00045073,120]
[406828961,1772211053018,-151.0,0.00045073,120]
[406828962,1772211053027,-151.0,0.00045073,120]
[406828963,1772211053036,-151.0,0.00045073,120]
[406828964,1772211053045,-151.0,0.00045073,120]
[406828965,1772211053055,-164.996573,0.00045073,120]
[406828966,1772211053063,-151.0,0.00045073,35]
[406828967,1772211053073,-151.0,0.00045073,120]
[406828968,1772211053083,-151.0,0.00045073,120]
[406828969,1772211053093,-196.450597,0.00045073,120]
[406828970,1772211053102,-151.0,0.00045073,120]
[406828971,1772211053111,-151.0,0.00045073,120]
[406828972,1772211053153,-237.417832,0.00045073,120]
[406828973,1772211053162,-151.0,0.00045073,120]
[406828974,1772211053172,-151.0,0.00045073,60]
[406828975,1772211053181,-151.0,0.00045073,120]
[406828976,1772211053190,-151.0,0.00045073,120]
[406828977,1772211053199,-151.0,0.00045073,120]
[406828978,1772211053209,-151.0,0.00045073,120]
[406828979,1772211053218,-151.0,0.00045073,120]
[406828980,1772211053227,-151.0,0.00045073,120]
[406828981,1772211053236,-151.0,0.00045073,120]
[406828982,1772211053245,-151.0,0.00045073,120]
[406828983,1772211053254,-151.0,0.00045073,120]
[406828984,1772211053263,-151.0,0.00045073,120]
[406828985,1772211053272,-151.0,0.00045073,120]
[406828986,1772211053281,-151.0,0.00045073,120]
[406828987,1772211053290,-151.868695,0.00045073,120]
[406828988,1772211053300,-151.868695,0.00045073,120]
[406828989,1772211053309,-151.868695,0.00045073,120]
[406828990,1772211053318,-151.868695,0.00045073,120]
[406828991,1772211053327,-151.0,0.00045073,120]
[406828992,1772211053337,-151.0,0.00045073,120]
[406828993,1772211053346,-151.0,0.00045073,120]
[406828994,1772211053355,-151.0,0.00045073,120]
[406828995,1772211053363,-151.0,0.00045073,120]
[406828996,1772211053372,-151.0,0.00045073,120]
[406828997,1772211053381,-168.281826,0.00045073,120]
[406828998,1772211053390,-151.0,0.00045073,120]
[406828999,1772211053401,-159.305684,0.00045073,120]
[406829000,1772211053410,-151.0,0.00045073,120]
[406829001,1772211053420,-151.0,0.00045073,120]
[406829002,1772211053431,-483.21007,0.00045073,120]
[406829003,1772211053440,-151.0,0.00045073,120]
[406829004,1772211053449,-483.21007,0.00045073,120]
[406829005,1772211053457,-454.750672,0.00045073,7]
[406829006,1772211053469,-151.0,0.00045073,120]
[406829007,1772211053478,-151.0,0.00045073,120]
[406829008,1772211053487,-151.0,0.00045073,120]
[406829009,1772211053496,-483.21007,0.00045073,120]
[406829010,1772211053506,-454.750672,0.00045073,7]
[406829011,1772211053515,-155.10784,0.00045073,120]
[406829012,1772211053524,-483.21007,0.00045073,120]
[406829013,1772211053533,-454.750672,0.00045073,7]
[406829014,1772211053542,-454.750672,0.00045073,7]
[406829015,1772211053552,-151.0,0.00045073,120]
[406829016,1772211053561,-151.0,0.00045073,120]
[406829017,1772211053570,-151.0,0.00045073,120]
[406829018,1772211053578,-172.929218,0.00045073,120]
[406829019,1772211053587,-151.0,0.00045073,120]
[406829020,1772211053596,-235.201545,0.00045073,120]
[406829021,1772211053605,-151.0,0.00045073,120]
[406829022,1772211053613,-1010.586614,0.00045073,15]
[406829023,1772211053622,-151.0,0.00045073,120]
[406829024,1772211053631,-1010.586614,0.00045073,15]
[406829025,1772211053640,-151.0,0.00045073,120]
[406829026,1772211053649,-151.0,0.00045073,120]
[406829027,1772211053658,-1010.586614,0.00045073,15]
[406829028,1772211053667,-1010.586614,0.00045073,15]
[406829029,1772211053676,-163.39821,0.00045073,120]
[406829030,1772211053685,-151.0,0.00045073,60]
[406829031,1772211053694,-151.0,0.00045073,120]
[406829032,1772211053703,-242.974448,0.00045073,31]
[406829033,1772211053712,-151.0,0.00045073,120]
[406829034,1772211053721,-151.0,0.00045073,120]
[406829035,1772211053730,-151.0,0.00045073,120]
[406829036,1772211053739,-151.0,0.00045073,120]
[406829037,1772211053748,-151.0,0.00045073,120]
[406829038,1772211053757,-151.0,0.00045073,120]
[406829039,1772211053766,-151.0,0.00045073,120]
[406829040,1772211053776,-151.0,0.00045073,120]
[406829041,1772211053785,-151.0,0.00045073,120]
[406829042,1772211053794,-151.0,0.00045073,31]
[406829043,1772211053803,-151.0,0.00045073,120]
[406829044,1772211053812,-151.0,0.00045073,120]
[406829045,1772211053821,-151.0,0.00045084,120]
[406829046,1772211053830,-131907.5885005,0.00045087,2]
[406829047,1772211053839,-277000.7803738,0.00045087,2]
[406829048,1772211053848,-17545.7700819,0.00045087,2]
[406829049,1772211053857,-151.0,0.00045087,120]
[406829050,1772211053865,-151.0,0.00045087,120]
[406829051,1772211053874,-151.0,0.00045087,120]
[406829052,1772211053883,-151.0,0.00045087,120]
[406829053,1772211053892,-245.634699,0.00045087,120]
[406829054,1772211053901,-154.016394,0.00045087,120]
[406829055,1772211053910,-245.634699,0.00045087,120]
[406829056,1772211053919,-273.913285,0.00045087,120]
[406829057,1772211053927,-245.634699,0.00045087,120]
[406829058,1772211053936,-245.634699,0.00045087,120]
[406829059,1772211053945,-151.0,0.00045087,120]
[406829060,1772211053954,-151.0,0.00045087,120]
[406829061,1772211053962,-151.0,0.00045087,120]
[406829062,1772211053971,-151.0,0.00045087,120]
[406829063,1772211053981,-151.0,0.00045087,120]
[406829064,1772211053990,-151.0,0.00045087,120]
[406829065,1772211053998,-151.0,0.00045087,120]
[406829066,1772211054009,-151.0,0.00045087,120]
[406829067,1772211054018,-279.592193,0.00045087,120]
[406829068,1772211054027,-151.0,0.00045087,30]
[406829069,1772211054036,-151.0,0.00045087,30]
[406829070,1772211054046,-151.0,0.00045087,120]
[406829071,1772211054055,-151.0,0.00045087,120]
[406829072,1772211054064,-171.876515,0.00045087,120]
[406829073,1772211054073,-241.644758,0.00045087,120]
[406829074,1772211054083,-287.710013,0.00045087,120]
[406829075,1772211054091,-151.0,0.00045087,120]
[406829076,1772211054100,-151.0,0.00045087,120]
[406829077,1772211054109,-151.0,0.00045087,120]
[406829078,1772211054117,-151.0,0.00045087,120]
[406829079,1772211054126,-151.0,0.00045087,120]
[406829080,1772211054136,-151.0,0.00045087,120]
[406829081,1772211054145,-151.0,0.00045087,120]
[406829082,1772211054154,-274.607648,0.00045087,120]
[406829083,1772211054163,-151.0,0.00045087,120]
[406829084,1772211054172,-151.0,0.00045087,120]
[406829085,1772211054181,-151.0,0.00045087,120]
[406829086,1772211054189,-151.0,0.00045087,120]
[406829087,1772211054198,-154.372804,0.00045087,120]
[406829088,1772211054207,-151.0,0.00045087,120]
[406829089,1772211054215,-151.0,0.00045087,120]
[406829090,1772211054224,-160.938582,0.00045087,120]
[406829091,1772211054233,-151.0,0.00045087,120]
[406829092,1772211054242,-325.542214,0.00045087,120]
[406829093,1772211054251,-151.0,0.00045087,30]
[406829094,1772211054259,-325.542214,0.00045087,120]
[406829095,1772211054268,-325.542214,0.00045087,120]
[406829096,1772211054277,-325.542214,0.00045087,120]
[406829097,1772211054285,-474.398593,0.00045087,120]
[406829098,1772211054294,-474.398593,0.00045087,120]
[406829099,1772211054304,-151.0,0.00045087,120]
[406829100,1772211054312,-474.398593,0.00045087,120]
[406829101,1772211054321,-444.831966,0.00045087,120]
[406829102,1772211054330,-151.0,0.00045087,120]
[406829103,1772211054338,-204.829574,0.00045087,120]
[406829104,1772211054347,-444.831966,0.00045087,120]
[406829105,1772211054356,-474.398593,0.00045087,120]
[406829106,1772211054365,-151.0,0.00045087,120]
[406829107,1772211054375,-444.831966,0.00045087,120]
[406829108,1772211054385,-151.0,0.00045087,120]
[406829109,1772211054397,-444.831966,0.00045087,120]
[406829110,1772211054406,-151.0,0.00045087,120]
[406829111,1772211054415,-201.386941,0.00045087,120]
[406829112,1772211054425,-151.0,0.00045087,120]
[406829113,1772211054434,-151.000123,0.00045087,120]
[406829114,1772211054443,-151.0,0.00045087,120]
[406829115,1772211054453,-151.0,0.00045087,120]
[406829116,1772211054462,-151.0,0.00045087,120]
[406829117,1772211054474,-151.0,0.00045087,120]
[406829118,1772211054484,-151.0,0.00045087,120]
[406829119,1772211054493,-151.0,0.00045087,14]
[406829120,1772211054503,-203.568761,0.00045087,120]
[406829121,1772211054512,-177.193464,0.00045087,120]
[406829122,1772211054522,-279.00802,0.00045087,120]
[406829123,1772211054531,-151.0,0.00045087,120]
[406829124,1772211054540,-279.00802,0.00045087,120]
[406829125,1772211054550,-432.122824,0.00045087,14]
[406829126,1772211054560,-151.0,0.00045087,120]
[406829127,1772211054569,-279.00802,0.00045087,120]
[406829128,1772211054578,-432.122824,0.00045087,14]
[406829129,1772211054587,-151.0,0.00045087,120]
[406829130,1772211054596,-279.00802,0.00045087,120]
[406829131,1772211054606,-432.122824,0.00045087,14]
[406829132,1772211054615,-520.378599,0.00045087,120]
[406829133,1772211054624,-151.0,0.00045087,120]
[406829134,1772211054633,-432.122824,0.00045087,14]
[406829135,1772211054642,-520.378599,0.00045087,120]
[406829136,1772211054651,-151.0,0.00045087,120]
[406829137,1772211054660,-520.378599,0.00045087,120]
[406829138,1772211054669,-520.378599,0.00045087,120]
[406829139,1772211054678,-151.0,0.00045087,90]
[406829140,1772211054687,-151.0,0.00045087,90]
[406829141,1772211054697,-151.0,0.00045087,120]
[406829142,1772211054707,-151.0,0.00045087,120]
[406829143,1772211054716,-151.0,0.00045087,120]
[406829144,1772211054725,-151.0,0.00045215,2]
[406829145,1772211054734,-151.0,0.00045215,2]
[406829146,1772211054744,-151.0,0.00045215,120]
[406829147,1772211054753,-151.0,0.00045215,120]
[406829148,1772211054763,-151.0,0.00045215,120]
[406829149,1772211054772,-151.0,0.00045215,120]
[406829150,1772211054781,-151.0,0.00045215,120]
[406829151,1772211054792,-151.0,0.00045215,120]
[406829152,1772211054801,-151.0,0.00045215,120]
[406829153,1772211054810,-151.0,0.00045215,120]
[406829154,1772211054819,-151.0,0.00045215,120]
[406829155,1772211054828,-151.0,0.00045215,120]
[406829156,1772211054838,-1136.37544884,0.00045215,50]
[406829157,1772211054847,-1001.41149697,0.00045215,50]
[406829158,1772211054857,-1000.78890474,0.00045215,50]
[406829159,1772211054867,-1148.77589031,0.00045215,50]
[406829160,1772211054876,-1027.82711488,0.00045215,50]
[406829161,1772211054885,-1046.39390724,0.00045215,50]
[406829162,1772211054894,-1070.59902116,0.00045215,50]
[406829163,1772211054904,-1125.96856613,0.00045215,50]
[406829164,1772211054913,-1140.67605918,0.00045215,50]
[406829165,1772211054922,-1096.63235193,0.00045215,50]
[406829166,1772211054932,-1095.2740371,0.00045215,50]
[406829167,1772211054941,-1113.02468152,0.00045215,50]
[406829168,1772211054951,-1103.67218547,0.00045215,50]
[406829169,1772211054960,-1137.45736887,0.00045215,50]
[406829170,1772211054970,-1134.9159489,0.00045215,50]
[406829171,1772211054979,-1032.87786497,0.00045215,50]
[406829172,1772211054989,-1032.89669693,0.00045215,50]
[406829173,1772211054998,-1138.95948887,0.00045215,50]
[406829174,1772211055007,-1040.92337466,0.00045215,50]
[406829175,1772211055017,-1040.76277344,0.00045215,50]
[406829176,1772211055026,-1009.68436524,0.00045215,50]
[406829177,1772211055035,-1137.48573336,0.00045215,50]
[406829178,1772211055044,-1124.5402044,0.00045215,50]
[406829179,1772211055054,-1103.59023055,0.00045215,50]
[406829180,1772211055063,-1077.80269559,0.00045215,50]
[406829181,1772211055075,-1018.11367724,0.00045215,50]
[406829182,1772211055091,-1107.31290908,0.00045215,50]
[406829183,1772211055100,-1243.89060245,0.00045215,50]
[406829184,1772211055109,-125196.0,0.00045275,60]
[406829185,1772211055119,-153.0,0.000453,120]
[406829186,1772211055128,-3460.32,0.000453,14]
[406829187,1772211055137,-2957.39,0.000453,14]
[406829188,1772211055146,-2622.62485657,0.00045342,120]
[406829189,1772211055155,-362.19766811,0.00045426,7]
[406829190,1772211055164,-844.0,0.00045479,120]
[406829191,1772211055173,-1000.0,0.00045595,120]
[406829192,1772211055182,-1000.0,0.000456,120]
[406829193,1772211055192,-1040.2,0.00045618,120]
[406829194,1772211055201,-4573.0,0.00045663,2]
[406829195,1772211055211,-33171.00129421,0.0004568,2]
[406829196,1772211055220,-437.0,0.00045685,90]
[406829197,1772211055229,-153.087449,0.00045689,120]
[406829198,1772211055238,-154.0,0.000458,120]
[406829199,1772211055248,-500.607635,0.000458,49]
[406829200,1772211055258,-274.05553643,0.000458,120]
[406829201,1772211055267,-157.38529778,0.000458,120]
[406829202,1772211055276,-300.0,0.000459,16]
[406829203,1772211055286,-285.18083939,0.00045913,3]
[406829204,1772211055296,-437.0,0.00045959,90]
[406829205,1772211055307,-400.0,0.0004597,3]
[406829206,1772211055318,-155.0,0.00046,30]
[406829207,1772211055327,-1000.0,0.00046,120]
[406829208,1772211055338,-1000.0,0.00046,120]
[406829209,1772211055349,-1000.0,0.00046,120]
[406829210,1772211055359,-1000.0,0.00046,120]